bitfinex/quotes_ETHUSD_20250210
["timestamp","ask_amount","ask_price","bid_price","bid_amount"]
[1739205478210,3.76393,2656.8,2656.3,3.76463]
[1739205478513,3.76393,2656.8,2656.3,3.76461]
[1739205478683,3.76395,2656.8,2656.3,3.76461]
[1739205478898,3.76406,2656.7,2656.2,8.34645]
[1739205479098,3.76395,2656.8,2656.3,3.76453]
[1739205479299,6.76345,2657.2,2656.7,0.8307]
[1739205479486,3.76316,2657.4,2656.7,4.59476]
[1739205479686,3.76316,2657.4,2656.8,3.7638]
[1739205480045,3.76316,2657.4,2657.0,3.76363]
[1739205480322,3.76307,2657.4,2656.9,0.03763216]
[1739205480488,0.8206,2657.4,2656.4,0.8307]
[1739205480689,3.76409,2656.7,2656.4,0.8307]
[1739205481031,3.76435,2656.5,2656.4,0.8307]
[1739205481332,3.76435,2656.5,2656.1,4.59559]
[1739205481500,3.76418,2656.7,2656.1,4.59559]
[1739205481701,3.76415,2656.7,2656.1,4.59559]
[1739205481921,3.76415,2656.7,2656.2,3.76474]
[1739205482215,3.76402,2656.8,2656.1,0.8307]
[1739205482415,7.52805,2656.8,2656.2,3.76477]
[1739205482647,3.76408,2656.7,2656.2,3.76477]
[1739205482844,3.76408,2656.7,2656.2,7.52947]
[1739205483045,7.52807,2656.8,2656.2,3.7647]
[1739205483249,3.76419,2656.7,2656.2,3.7647]
[1739205483573,3.76431,2656.6,2656.1,4.59561]
[1739205483859,3.76431,2656.6,2656.1,0.8307]
[1739205484266,0.8206,2656.7,2656.2,3.7647]
[1739205484628,3.764,2656.8,2656.3,3.7646]
[1739205484951,3.76372,2657.0,2656.4,0.098388]
[1739205485178,3.76233,2658.0,2655.8,3.0]
[1739205485179,3.76286,2657.6,2656.8,3.76391]
[1739205485382,3.76328,2657.3,2656.8,3.76391]
[1739205485691,3.76328,2657.3,2656.9,0.09772917]
[1739205486407,3.76287,2657.6,2656.9,0.13536507]
[1739205486687,0.8206,2657.7,2656.9,3.86138917]
[1739205486888,3.76322,2657.3,2656.9,3.86138917]
[1739205487097,3.76322,2657.3,2656.9,0.09772917]
[1739205487588,3.76322,2657.3,2657.0,0.09758512]
[1739205487793,3.76322,2657.3,2656.7,4.59466]
[1739205487960,3.76322,2657.3,2657.1,0.09747673]
[1739205488160,3.76322,2657.3,2656.7,4.59466]
[1739205488366,3.76322,2657.3,2657.2,0.09736834]
[1739205488565,3.76322,2657.3,2656.8,3.76381]
[1739205488767,3.76322,2657.3,2657.2,0.09736834]
[1739205489093,3.76322,2657.3,2656.8,3.76381]
[1739205489289,3.76299,2657.5,2657.2,0.09736834]
[1739205489463,3.76299,2657.5,2656.9,3.76368]
[1739205489663,3.7632,2657.4,2657.3,0.09725997]
[1739205489895,3.7632,2657.4,2656.9,3.76368]
[1739205490052,3.7632,2657.4,2657.3,0.09725997]
[1739205490307,0.8206,2657.7,2656.7,0.8307]
[1739205490501,4.58423,2657.1,2656.5,3.76425]
[1739205490743,3.76392,2656.8,2656.1,0.8307]
[1739205490901,3.76414,2656.7,2656.2,3.76469]
[1739205491241,3.76414,2656.7,2656.1,8.36037]
[1739205491457,3.76414,2656.7,2656.2,3.76475]
[1739205491628,3.76388,2656.9,2656.3,3.76461]
[1739205491830,3.76337,2657.2,2656.7,3.76405]
[1739205492144,3.76362,2657.1,2656.6,4.52847]
[1739205492648,3.76337,2657.2,2656.6,0.7643]
[1739205492865,3.76352,2657.1,2656.7,3.76406]
[1739205493019,7.52686,2657.2,2656.7,3.76406]
[1739205493348,3.76371,2657.0,2656.4,0.7643]
[1739205493554,3.76393,2656.8,2656.4,0.7643]
[1739205493957,3.76374,2657.0,2656.4,4.52879]
[1739205494161,3.76332,2657.3,2656.4,0.7643]
[1739205494344,3.76329,2657.3,2656.8,3.7639]
[1739205494869,4.31267,2657.7,2656.8,3.7639]
[1739205494870,3.76302,2657.5,2657.0,3.76363]
[1739205495187,7.52517,2657.8,2657.2,3.76327]
[1739205495477,3.76256,2657.8,2657.0,3.76353]
[1739205495618,3.76265,2657.7,2657.0,3.76353]
[1739205495819,3.76303,2657.5,2656.9,0.8002]
[1739205496066,3.76303,2657.5,2657.0,3.76363]
[1739205496222,3.76344,2657.2,2656.6,3.76419]
[1739205496549,3.76399,2656.8,2656.3,0.8002]
[1739205496747,7.52802,2656.8,2656.3,0.8002]
[1739205496969,3.76399,2656.8,2656.3,0.8002]
[1739205497149,3.76374,2657.0,2656.3,4.56479]
[1739205497350,3.7973,2657.4,2656.3,0.8002]
[1739205497566,0.7973,2657.4,2656.9,4.56385]
[1739205497737,7.52608,2657.5,2656.9,4.56385]
[1739205497738,7.52605,2657.5,2656.9,4.56385]
[1739205498230,3.76302,2657.5,2656.9,4.56385]
[1739205498630,3.76307,2657.4,2656.9,4.56385]
[1739205499328,3.76302,2657.5,2657.0,3.7636]
[1739205499529,3.76295,2657.5,2656.9,8.32752]
[1739205499729,3.76295,2657.5,2656.9,4.56384]
[1739205500034,3.76295,2657.5,2657.0,0.09746842]
[1739205500234,3.76336,2657.2,2657.0,0.09746842]
[1739205500448,3.76325,2657.3,2657.0,0.09746842]
[1739205500650,7.52659,2657.3,2657.0,0.09746842]
[1739205500846,0.7973,2657.2,2656.6,0.8002]
[1739205501071,3.76389,2656.9,2656.4,4.56465]
[1739205501235,3.76389,2656.9,2656.4,4.56468]
[1739205501632,3.76389,2656.9,2656.4,0.8002]
[1739205501860,3.76388,2656.9,2656.4,4.5646]
[1739205502238,7.36178459,2657.2,2656.1,12.51499]
[1739205502433,7.36178459,2657.2,2656.1,0.8002]
[1739205502434,0.7973,2656.7,2656.1,0.8002]
[1739205502673,3.76499,2656.1,2655.7,0.8002]
[1739205503079,3.76466,2656.3,2655.7,0.8002]
[1739205503376,3.76466,2656.3,2655.7,4.56567]
[1739205503578,0.7973,2656.2,2655.7,0.8002]
[1739205503878,4.56209,2656.2,2655.7,4.56565]
[1739205504238,3.76466,2656.3,2655.8,3.76528]
[1739205505439,3.76441,2656.5,2655.9,3.76518]
[1739205505649,3.76458,2656.4,2655.9,3.76518]
[1739205506250,3.76466,2656.3,2655.8,3.76526]
[1739205506482,3.76463,2656.4,2655.8,3.76526]
[1739205507243,3.76464,2656.3,2655.8,3.76526]
[1739205508284,3.76441,2656.5,2656.0,3.765]
[1739205508470,3.76441,2656.5,2656.1,0.8002]
[1739205508853,3.76413,2656.7,2656.2,3.76476]
[1739205509054,4.56108,2656.9,2656.2,3.76477]
[1739205509259,3.76409,2656.7,2656.1,0.8002]
[1739205509879,3.76435,2656.5,2656.1,0.8002]
[1739205510048,3.76409,2656.7,2656.1,4.56507]
[1739205510267,3.76423,2656.6,2656.1,4.56507]
[1739205510474,3.76426,2656.6,2656.1,0.8002]
[1739205510685,3.76426,2656.6,2656.1,4.56509]
[1739205512170,3.76409,2656.7,2656.1,4.56504]
[1739205512683,3.76406,2656.7,2656.1,4.56504]
[1739205512891,3.76406,2656.7,2656.2,3.76476]
[1739205513717,3.76444,2656.5,2656.1,0.8002]
[1739205514220,3.76412,2656.7,2656.1,4.56504]
[1739205514377,3.76433,2656.6,2656.1,0.8002]
[1739205515009,3.76432,2656.6,2656.2,0.09883513]
[1739205515205,3.7643,2656.6,2656.2,0.09883513]
[1739205515521,7.5286,2656.6,2656.2,0.09883513]
[1739205516082,3.76437,2656.5,2656.2,0.09883513]
[1739205517919,3.76485,2656.2,2655.8,8.7502]
[1739205518092,3.76485,2656.2,2655.8,12.51554]
[1739205518923,4.5619,2656.4,2655.8,8.33079]
[1739205519123,3.76463,2656.3,2655.8,8.3307]
[1739205519333,0.7973,2656.4,2655.9,3.76518]
[1739205519481,3.76446,2656.5,2656.0,3.76505]
[1739205519676,4.56146,2656.7,2656.1,3.76491]
[1739205519881,3.7643,2656.6,2656.0,3.76505]
[1739205520114,3.76458,2656.4,2655.9,3.76519]
[1739205520618,3.76458,2656.4,2656.0,3.76503]
[1739205520814,3.76458,2656.4,2655.9,3.76519]
[1739205521123,3.76464,2656.3,2655.9,3.76519]
[1739205521323,3.76464,2656.3,2655.8,4.56553]
[1739205521527,4.56232,2656.1,2655.5,4.56586]
[1739205521686,4.56232,2656.1,2655.6,3.7656]
[1739205522084,4.56232,2656.1,2655.5,4.56586]
[1739205522085,0.7973,2656.1,2655.7,3.76545]
[1739205522387,3.76449,2656.4,2656.0,0.8002]
[1739205522582,3.76444,2656.5,2656.0,4.56524]
[1739205522796,3.76436,2656.5,2656.0,4.56524]
[1739205523237,3.76436,2656.5,2656.0,8.33023]
[1739205523445,3.76436,2656.5,2656.0,4.56519]
[1739205523937,3.76436,2656.5,2656.0,0.8002]
[1739205524141,3.76455,2656.4,2656.0,0.8002]
[1739205524445,3.76434,2656.6,2656.0,4.56525]
[1739205524648,0.0075,2657.4,2656.5,3.76424]
[1739205524649,4.53931,2657.0,2656.5,3.76424]
[1739205525105,4.53931,2657.0,2656.6,0.09840135]
[1739205525299,3.76379,2656.9,2656.6,0.09840135]
[1739205525759,0.7756,2657.0,2656.6,3.76411]
[1739205525912,0.7756,2657.0,2656.7,0.09829293]
[1739205526113,3.7638,2656.9,2656.7,0.09829293]
[1739205526319,3.7638,2656.9,2656.5,3.76435]
[1739205527017,3.76355,2657.1,2656.6,3.7642]
[1739205527253,4.5389,2657.3,2656.7,3.80167859]
[1739205527404,7.52665,2657.3,2656.7,3.80167859]
[1739205527747,0.7756,2657.5,2656.7,3.80167859]
[1739205527748,3.0,2657.4,2656.8,4.52956]
[1739205528156,3.76325,2657.3,2656.9,0.09786207]
[1739205528957,6.76307,2657.4,2656.9,3.86163207]
[1739205530319,3.76324,2657.3,2656.9,0.09786207]
[1739205530519,3.76346,2657.2,2656.9,0.09786207]
[1739205530761,3.76324,2657.3,2656.9,0.09786207]
[1739205531419,3.76336,2657.2,2656.9,0.09786207]
[1739205531824,3.76361,2657.1,2656.9,0.09786207]
[1739205532143,3.76364,2657.0,2656.5,4.52997]
[1739205532349,3.76364,2657.0,2656.5,0.7657]
[1739205532524,3.76383,2656.9,2656.5,0.7657]
[1739205532719,3.76432,2656.6,2656.2,0.7657]
[1739205533325,3.76411,2656.7,2656.2,4.53045]
[1739205533720,3.76394,2656.8,2656.2,4.53045]
[1739205533935,3.76394,2656.8,2656.2,4.53038]
[1739205534342,3.76415,2656.7,2656.2,4.53038]
[1739205534765,4.31374,2657.0,2656.4,3.76441]
[1739205534949,3.76393,2656.8,2656.2,4.5304]
[1739205535517,3.76427,2656.6,2656.2,0.7657]
[1739205535826,3.76432,2656.6,2656.2,0.7657]
[1739205536026,3.76442,2656.5,2656.0,3.76498]
[1739205537209,3.76465,2656.3,2655.9,0.7657]
[1739205537521,0.7756,2656.6,2655.9,0.7657]
[1739205537820,3.7646,2656.4,2655.9,0.7657]
[1739205538017,3.76465,2656.3,2655.9,0.7657]
[1739205538226,3.76444,2656.5,2655.5,0.7657]
[1739205538227,3.0,2656.4,2655.5,0.7657]
[1739205538532,7.53033,2656.0,2655.5,0.7657]
[1739205538822,3.76491,2656.1,2655.6,3.76561]
[1739205538990,3.76506,2656.0,2655.6,3.76561]
[1739205539209,3.76506,2656.0,2655.5,0.7657]
[1739205539400,3.76477,2656.2,2655.5,4.53144]
[1739205539798,3.76524,2655.9,2655.5,0.7657]
[1739205540415,3.7654,2655.8,2655.5,0.7657]
[1739205541013,3.76524,2655.9,2655.5,0.7657]
[1739205541218,3.76538,2655.8,2655.5,0.7657]
[1739205542122,0.8265,2655.6,2654.9,1.56142242]
[1739205542329,3.76598,2655.4,2654.9,0.8163]
[1739205542532,3.76598,2655.4,2654.9,4.58292]
[1739205542892,3.76613,2655.3,2654.9,0.8163]
[1739205543250,0.8265,2655.6,2654.6,0.8163]
[1739205543458,3.7662,2655.2,2654.6,4.58325]
[1739205543637,3.7662,2655.2,2654.7,3.7669]
[1739205544005,3.76599,2655.4,2654.8,3.76669]
[1739205544502,3.76599,2655.4,2654.7,3.7669]
[1739205544705,3.76599,2655.4,2654.9,3.76658]
[1739205544904,4.59221,2655.6,2654.9,3.76654]
[1739205545531,3.76593,2655.4,2655.1,0.8163]
[1739205546041,3.76593,2655.4,2655.2,0.10040351]
[1739205546824,3.76593,2655.4,2655.3,0.10029497]
[1739205547141,3.76584,2655.5,2655.1,0.8163]
[1739205547343,3.76578,2655.5,2655.3,0.10029497]
[1739205547688,2.89757622,2656.3,2655.4,0.10018644]
[1739205547829,3.76527,2655.9,2655.3,3.76605]
[1739205548030,3.76527,2655.9,2655.4,3.86607644]
[1739205548972,3.76527,2655.9,2655.4,7.63189644]
[1739205549127,3.76527,2655.9,2655.4,3.86600644]
[1739205550749,3.76527,2655.9,2655.4,0.10018644]
[1739205550942,3.7655,2655.7,2655.2,3.76613]
[1739205551223,3.7655,2655.7,2655.3,0.3769]
[1739205551454,3.76527,2655.9,2655.4,3.86606644]
[1739205551871,3.76536,2655.8,2655.4,0.10018644]
[1739205552767,3.76534,2655.8,2655.4,0.10018644]
[1739205553268,3.76549,2655.7,2655.5,0.10007792]
[1739205553470,0.8265,2656.2,2655.6,0.8163]
[1739205553683,3.76436,2656.5,2656.0,3.76497]
[1739205553830,3.76436,2656.5,2656.0,3.76496]
[1739205554035,3.0,2656.4,2656.1,0.09934256]
[1739205554247,6.76451,2656.4,2656.1,0.09934256]
[1739205554543,6.76451,2656.4,2655.9,3.76513]
[1739205554776,6.76451,2656.4,2656.2,0.09923409]
[1739205555080,6.76451,2656.4,2655.9,3.76513]
[1739205555288,6.76451,2656.4,2656.3,0.09912564]
[1739205555469,3.0,2656.4,2656.0,3.76504]
[1739205555666,3.0,2656.4,2656.3,0.09867244]
[1739205555889,3.76393,2656.8,2656.3,3.76463]
[1739205556189,3.76393,2656.8,2656.3,3.86330244]
[1739205556487,3.76409,2656.7,2656.3,0.09867244]
[1739205557490,3.76431,2656.6,2656.3,0.09867244]
[1739205558545,3.76408,2656.7,2656.3,0.09867244]
[1739205558955,3.76421,2656.6,2656.3,0.09867244]
[1739205559457,7.5285,2656.6,2656.3,0.09867244]
[1739205559988,3.76442,2656.5,2656.3,0.09867244]
[1739205560190,3.76449,2656.4,2656.3,0.09867244]
[1739205560595,3.76435,2656.5,2655.9,4.53823]
[1739205560752,3.76435,2656.5,2656.3,0.09856863]
[1739205560952,3.76435,2656.5,2655.9,0.7731]
[1739205561155,4.55802,2656.6,2656.4,0.09838559]
[1739205561354,3.76422,2656.6,2656.1,3.76489]
[1739205561554,3.76422,2656.6,2656.5,0.09827715]
[1739205562176,3.76422,2656.6,2656.1,3.76489]
[1739205562349,3.76422,2656.6,2656.5,0.09827715]
[1739205562695,3.76416,2656.7,2656.2,3.76471]
[1739205562880,3.76416,2656.7,2656.5,0.09827715]
[1739205563213,3.76416,2656.7,2656.2,3.76471]
[1739205563493,4.55761,2656.9,2655.9,0.7731]
[1739205563647,4.55761,2656.9,2656.3,3.76456]
[1739205563844,4.55761,2656.9,2656.3,0.09849404]
[1739205564045,3.76393,2656.8,2656.4,0.7731]
[1739205564345,3.76373,2657.0,2656.4,4.53758]
[1739205564547,3.69137622,2657.5,2656.8,3.76391]
[1739205564798,3.69137622,2657.5,2656.9,0.7731]
[1739205564799,3.76315,2657.4,2656.9,0.7731]
[1739205565092,3.76315,2657.4,2656.9,0.87059967]
[1739205565445,3.76364,2657.0,2656.9,0.09749967]
[1739205565958,3.76379,2656.9,2656.6,0.7731]
[1739205566480,3.76351,2657.1,2656.6,4.53729]
[1739205566671,7.52712,2657.1,2656.6,4.53729]
[1739205566853,3.76365,2657.0,2656.6,4.53729]
[1739205567055,3.76365,2657.0,2656.6,0.7731]
[1739205567351,3.76339,2657.2,2656.7,3.76403]
[1739205567565,3.76353,2657.1,2656.6,4.53729]
[1739205567892,3.76364,2657.0,2656.6,0.7731]
[1739205568492,3.76353,2657.1,2656.6,0.7731]
[1739205568698,7.52712,2657.1,2656.6,4.53727]
[1739205569209,3.76353,2657.1,2656.6,4.53727]
[1739205569502,3.76353,2657.1,2656.6,0.7731]
[1739205569703,3.69137622,2657.5,2656.6,0.7731]
[1739205569704,3.76405,2656.8,2656.6,0.7731]
[1739205570003,3.76405,2656.8,2656.3,0.7731]
[1739205570160,3.76402,2656.8,2656.3,0.7731]
[1739205570359,3.76411,2656.7,2656.3,0.7731]
[1739205570772,3.76402,2656.8,2656.3,0.7731]
[1739205571009,3.76402,2656.8,2656.4,3.76448]
[1739205571214,3.76425,2656.6,2656.3,0.7731]
[1739205571366,3.76404,2656.8,2656.3,0.7731]
[1739205571566,3.76404,2656.8,2656.3,4.53772]
[1739205573361,3.76373,2657.0,2656.3,0.7731]
[1739205573652,3.76391,2656.9,2656.4,7.5288]
[1739205573857,3.0,2657.1,2656.7,0.7786]
[1739205574040,6.76359,2657.1,2656.7,0.7786]
[1739205574356,3.76359,2657.1,2656.7,0.7786]
[1739205575053,3.76345,2657.2,2656.8,3.8613984]
[1739205575238,3.76313,2657.4,2656.8,3.8613984]
[1739205575426,7.52631,2657.4,2656.9,3.76376]
[1739205575629,3.76324,2657.3,2656.9,3.76376]
[1739205576016,2.89757622,2657.8,2657.1,0.7786]
[1739205576212,1.82940271,2660.2,2657.1,0.7786]
[1739205576213,0.7694,2658.2,2657.2,0.03763032]
[1739205576416,0.7694,2658.2,2657.7,3.76251]
[1739205576662,3.76208,2658.1,2657.3,3.76313]
[1739205576885,3.7623,2658.0,2657.8,0.09620016]
[1739205577035,3.76208,2658.1,2657.7,0.7786]
[1739205577239,0.7694,2658.2,2657.4,0.87523355]
[1739205577240,3.76241,2657.9,2657.4,0.87523355]
[1739205577481,3.76241,2657.9,2657.8,0.09620016]
[1739205577663,3.76211,2658.1,2657.5,3.76291]
[1739205577876,3.76211,2658.1,2657.8,0.09620016]
[1739205577877,3.76231,2658.0,2657.8,0.09620016]
[1739205578039,3.76231,2658.0,2657.5,3.76291]
[1739205578341,3.76211,2658.1,2657.4,4.54165]
[1739205578545,0.7694,2658.2,2657.6,0.09615761]
[1739205578743,3.76236,2657.9,2657.4,0.7786]
[1739205579036,3.7623,2658.0,2657.4,4.54165]
[1739205579238,4.53135,2658.2,2657.6,3.76279]
[1739205579452,8.29341,2658.2,2657.6,3.76279]
[1739205579677,4.53135,2658.2,2657.7,0.09604603]
[1739205579886,6.66008622,2657.8,2657.7,0.09604603]
[1739205580044,7.97948622,2657.8,2657.7,0.09604603]
[1739205580240,3.76337,2657.2,2656.8,0.7786]
[1739205580521,3.76286,2657.6,2656.9,3.76378]
[1739205580670,3.76286,2657.6,2656.9,0.09324925]
[1739205580882,3.76265,2657.7,2657.2,0.7786]
[1739205581193,3.7629,2657.6,2657.3,0.0928157]
[1739205581343,3.76265,2657.7,2657.3,0.0928157]
[1739205581684,7.52542,2657.7,2657.4,0.09270733]
[1739205581845,3.76293,2657.5,2657.2,0.7786]
[1739205582040,3.76293,2657.5,2657.0,3.76355]
[1739205582682,3.76293,2657.5,2657.1,0.09303246]
[1739205583286,3.76312,2657.4,2657.1,0.09303246]
[1739205583488,3.76312,2657.4,2656.9,4.54236]
[1739205583683,3.76312,2657.4,2657.0,0.09314085]
[1739205583981,9.66016622,2657.8,2657.1,3.76342]
[1739205584141,9.66016622,2657.8,2657.1,3.85653246]
[1739205584350,3.76301,2657.5,2657.1,0.09303246]
[1739205584563,3.76301,2657.5,2656.9,4.54229]
[1739205584767,4.57641,2657.5,2657.2,0.09292408]
[1739205584963,0.8134,2657.5,2656.9,4.54229]
[1739205585161,3.76309,2657.4,2657.3,0.0928157]
[1739205585364,3.76342,2657.2,2656.9,0.7786]
[1739205585779,3.71097622,2657.5,2656.5,0.7579]
[1739205586101,3.76391,2656.9,2656.5,0.7579]
[1739205586449,3.7636,2657.1,2656.5,4.52224]
[1739205586450,3.76369,2657.0,2656.5,4.52224]
[1739205586644,3.7636,2657.1,2656.5,4.52211]
[1739205586886,3.76343,2657.2,2656.6,3.7641]
[1739205587094,3.76343,2657.2,2656.7,3.76406]
[1739205587294,3.71097622,2657.5,2656.9,3.76373]
[1739205587472,3.76275,2657.7,2657.0,0.7579]
[1739205587675,3.763,2657.5,2657.0,4.52141]
[1739205588266,3.76293,2657.5,2657.0,4.52141]
[1739205588593,3.76288,2657.6,2657.0,4.52141]
[1739205588897,3.76288,2657.6,2657.1,3.7635]
[1739205589265,3.76283,2657.6,2657.1,3.76343]
[1739205589470,3.76283,2657.6,2657.0,4.52141]
[1739205589671,3.76283,2657.6,2657.1,3.76339]
[1739205589980,2.89757622,2657.8,2657.0,0.7579]
[1739205590290,3.76321,2657.3,2657.1,0.09327451]
[1739205590653,3.76309,2657.4,2657.1,0.09327451]
[1739205591457,3.76286,2657.6,2657.1,3.85666451]
[1739205591884,0.8134,2657.9,2657.1,0.09327451]
[1739205592068,0.8134,2657.9,2657.5,3.7628]
[1739205592382,3.76271,2657.7,2657.6,0.09291018]
[1739205592695,3.76295,2657.5,2657.0,0.7579]
[1739205593059,3.76313,2657.4,2657.0,0.7579]
[1739205593403,3.76287,2657.6,2657.1,3.76341]
[1739205593556,3.76251,2657.8,2657.3,3.76311]
[1739205593883,3.76251,2657.8,2657.1,3.76341]
[1739205594063,3.76279,2657.6,2657.1,3.76341]
[1739205594994,3.76279,2657.6,2657.0,0.7579]
[1739205595302,3.76305,2657.5,2657.0,0.7579]
[1739205595458,3.763,2657.5,2657.0,4.5215]
[1739205595859,3.7633,2657.3,2657.0,0.7579]
[1739205597388,3.76349,2657.2,2657.0,0.7579]
[1739205597564,3.76335,2657.2,2657.0,0.7579]
[1739205597763,3.7635,2657.1,2656.6,15.47825]
[1739205598070,3.76364,2657.0,2656.7,0.7764]
[1739205599291,4.57475,2657.4,2656.7,4.54038]
[1739205599489,3.76315,2657.4,2656.8,3.76384]
[1739205599717,3.76324,2657.3,2656.8,3.76384]
[1739205600775,3.76321,2657.3,2656.7,8.30436]
[1739205601187,3.76321,2657.3,2656.8,3.7639]
[1739205602015,3.76322,2657.3,2656.9,3.76377]
[1739205602229,4.54579,2657.6,2656.9,3.76377]
[1739205602431,4.54579,2657.6,2657.1,3.76343]
[1739205602571,3.76261,2657.8,2657.2,0.8265]
[1739205602766,3.76251,2657.8,2657.2,0.8265]
[1739205602974,3.76271,2657.7,2657.2,4.58978]
[1739205603193,3.76251,2657.8,2657.3,3.76319]
[1739205603404,3.76251,2657.8,2657.2,4.58978]
[1739205603616,3.76265,2657.7,2657.2,4.58978]
[1739205605018,3.76265,2657.7,2657.3,0.0932159]
[1739205605373,3.76265,2657.7,2657.2,4.58978]
[1739205605574,3.76265,2657.7,2657.4,0.09310753]
[1739205605789,3.76265,2657.7,2657.2,4.58978]
[1739205606018,3.76279,2657.6,2657.5,0.09299917]
[1739205606224,3.76279,2657.6,2657.2,0.8265]
[1739205606225,3.76286,2657.6,2657.2,0.8265]
[1739205606418,7.52514,2657.8,2657.5,0.09299917]
[1739205606578,3.76251,2657.8,2657.2,0.8265]
[1739205606791,3.76251,2657.8,2657.6,0.09289082]
[1739205606994,3.76251,2657.8,2657.3,3.76321]
[1739205607221,3.76251,2657.8,2657.7,0.09278248]
[1739205607409,4.54537,2657.9,2657.4,3.76298]
[1739205607606,3.76251,2657.8,2657.7,0.09265659]
[1739205607804,3.76251,2657.8,2657.3,7.52623]
[1739205608005,0.7829,2657.9,2657.7,0.09265659]
[1739205608337,4.54527,2657.9,2657.8,0.09254826]
[1739205608494,4.54527,2657.9,2657.4,3.76306]
[1739205608831,3.76252,2657.8,2657.5,0.09287329]
[1739205609324,3.76252,2657.8,2657.6,0.09276493]
[1739205609522,3.76252,2657.8,2657.2,4.58984]
[1739205609704,3.76252,2657.8,2657.7,0.09265659]
[1739205609900,0.7829,2657.9,2657.2,0.8265]
[1739205610103,3.76244,2657.9,2657.4,4.58952]
[1739205610400,3.7626,2657.8,2657.5,0.09287329]
[1739205610621,3.76265,2657.7,2657.2,8.7765]
[1739205610817,3.76265,2657.7,2657.6,0.0927133]
[1739205611128,3.7633,2657.3,2656.7,0.8265]
[1739205611297,3.76349,2657.2,2656.7,4.59055]
[1739205611700,3.76317,2657.4,2656.8,3.76391]
[1739205611912,3.76316,2657.4,2656.8,3.76391]
[1739205612110,3.76321,2657.3,2656.8,3.76386]
[1739205612308,3.76316,2657.4,2656.8,3.76386]
[1739205612535,4.54556,2657.7,2657.2,3.76335]
[1739205612734,3.76253,2657.8,2657.0,4.59002]
[1739205613033,3.0,2657.7,2657.2,3.76332]
[1739205613412,6.76271,2657.7,2657.2,3.76332]
[1739205613614,3.76271,2657.7,2657.2,3.76332]
[1739205613797,3.76253,2657.8,2657.2,7.52658]
[1739205614003,7.52516,2657.8,2657.2,3.76326]
[1739205614313,3.76253,2657.8,2657.2,3.76326]
[1739205614516,7.52512,2657.8,2657.2,3.76326]
[1739205614718,3.76253,2657.8,2657.3,3.76318]
[1739205615155,7.48197622,2658.2,2657.6,3.76269]
[1739205615366,3.76211,2658.1,2657.6,3.76269]
[1739205615512,3.76241,2657.9,2657.4,4.56127]
[1739205615709,3.76238,2657.9,2657.4,0.7983]
[1739205616457,3.0,2658.1,2657.4,0.8359268]
[1739205616615,3.0,2658.1,2657.4,0.7983]
[1739205616818,6.7621,2658.1,2657.4,0.7983]
[1739205617020,0.8224,2658.2,2657.5,3.76286]
[1739205617320,3.76231,2658.0,2657.5,3.76285]
[1739205617520,3.76231,2658.0,2657.4,0.7983]
[1739205617521,3.71997622,2658.2,2657.4,0.7983]
[1739205617714,3.76259,2657.8,2657.4,0.7983]
[1739205618110,3.76224,2658.0,2657.4,0.7983]
[1739205618413,3.76224,2658.0,2657.4,4.59892666]
[1739205618626,3.76237,2657.9,2657.4,4.59897666]
[1739205618924,3.76237,2657.9,2657.4,4.56135]
[1739205619123,3.76236,2657.9,2657.4,0.7983]
[1739205619425,3.76236,2657.9,2657.4,4.56136]
[1739205619947,3.76236,2657.9,2657.5,0.09276676]
[1739205620316,3.7626,2657.8,2657.5,0.09276676]
[1739205620511,3.76236,2657.9,2657.5,0.09276676]
[1739205621552,3.76262,2657.8,2657.5,0.09276676]
[1739205622563,3.76239,2657.9,2657.5,0.09276676]
[1739205622769,3.0,2658.1,2657.5,0.09276676]
[1739205623063,3.76245,2657.9,2657.5,0.09276676]
[1739205623453,3.76248,2657.9,2657.5,0.09276676]
[1739205623756,3.76258,2657.8,2657.5,0.09276676]
[1739205623969,3.76251,2657.8,2657.5,0.09276676]
[1739205624120,3.76279,2657.7,2657.5,0.09276676]
[1739205624321,3.76312,2657.4,2657.1,0.7983]
[1739205624662,3.76312,2657.4,2657.2,0.09309186]
[1739205625168,3.76294,2657.5,2657.2,0.09309186]
[1739205625471,3.76267,2657.7,2657.2,0.09309186]
[1739205625615,3.7626,2657.8,2657.2,0.09309186]
[1739205625815,3.7629,2657.6,2657.2,0.09309186]
[1739205626673,3.7629,2657.6,2657.2,3.85642186]
[1739205627267,3.7629,2657.6,2657.2,0.09309186]
[1739205627571,3.76305,2657.5,2657.2,0.09309186]
[1739205628139,3.76308,2657.4,2657.2,0.09309186]
[1739205628440,3.76305,2657.5,2657.2,0.09309186]
[1739205628767,7.52552,2657.7,2657.2,0.09309186]
[1739205628949,3.76275,2657.7,2657.2,0.09309186]
[1739205629154,3.76279,2657.6,2657.2,3.85644186]
[1739205629694,3.76279,2657.6,2657.2,0.09309186]
[1739205630993,3.763,2657.5,2657.2,0.09309186]
[1739205631657,3.76318,2657.4,2657.2,0.09309186]
[1739205631868,3.76321,2657.3,2657.2,0.09309186]
[1739205632112,3.76318,2657.4,2657.2,0.09309186]
[1739205632253,3.76293,2657.5,2657.2,0.09309186]
[1739205632686,3.76293,2657.5,2657.2,0.13451051]
[1739205633954,3.7632,2657.4,2657.2,0.13451051]
[1739205634155,3.7632,2657.4,2656.9,4.56576]
[1739205634351,3.76271,2657.7,2657.3,0.13453634]
[1739205634588,3.76271,2657.7,2657.1,3.76349]
[1739205634901,3.76271,2657.7,2657.2,3.76328]
[1739205635195,3.76288,2657.6,2657.3,0.8021]
[1739205635365,3.76288,2657.6,2657.3,0.93663634]
[1739205635698,3.76287,2657.6,2657.3,0.93663634]
[1739205638000,3.76261,2657.8,2657.3,0.93663634]